[Event "Titled Tuesday Blitz June 13 Late 2023"]
[White "Rosen, Eric"]
[Black "angelgab3"]
[WhiteFideId "2032562"]
[WhiteElo "2331"]
[BlackElo "2523"]
[Result "1-0"]
[Round "10"]
[TimeControl "180+2"]
[Date "2023.06.13"]
[WhiteClock "0:00:06"]
[BlackClock "0:00:49"]
[Board "61"]

1. e4 {[%clk 0:03:00]}  e5 {[%clk 0:02:58]} 2. Nf3 {[%clk 0:03:01]}  Nc6 {[%clk 0:02:59]} 3. c3 {[%clk 0:03:01]}  Nf6 {[%clk 0:02:58]} 4. d4 {[%clk 0:03:01]}  exd4 {[%clk 0:02:58]} 5. e5 {[%clk 0:03:02]}  Ne4 {[%clk 0:02:58]} 6. Qe2 {[%clk 0:03:00]}  d5 {[%clk 0:02:43]} 7. exd6 {[%clk 0:03:01]}  Bf5 {[%clk 0:02:44]} 8. Nfd2 {[%clk 0:02:41]}  d3 {[%clk 0:02:11]} 9. Qe3 {[%clk 0:02:38]}  Qh4 {[%clk 0:02:12]} 10. g3 {[%clk 0:02:29]}  Qg5 {[%clk 0:02:10]} 11. f4 {[%clk 0:01:59]}  Qg6 {[%clk 0:02:08]} 12. Bxd3 {[%clk 0:01:47]}  O-O-O {[%clk 0:02:08]} 13. Nxe4 {[%clk 0:01:45]}  Re8 {[%clk 0:02:01]} 14. Nbd2 {[%clk 0:01:27]}  Bxe4 {[%clk 0:01:59]} 15. Bxe4 {[%clk 0:01:03]}  f5 {[%clk 0:01:57]} 16. Bxf5+ {[%clk 0:00:56]}  Kb8 {[%clk 0:01:54]} 17. Bxg6 {[%clk 0:00:52]}  Rxe3+ {[%clk 0:01:54]} 18. Kf2 {[%clk 0:00:52]}  Re6 {[%clk 0:01:53]} 19. dxc7+ {[%clk 0:00:44]}  Kxc7 {[%clk 0:01:54]} 20. Be4 {[%clk 0:00:45]}  Bc5+ {[%clk 0:01:55]} 21. Kf3 {[%clk 0:00:44]}  Rd8 {[%clk 0:01:56]} 22. b4 {[%clk 0:00:41]}  Bb6 {[%clk 0:01:50]} 23. Nc4 {[%clk 0:00:39]}  g5 {[%clk 0:01:45]} 24. Nxb6 {[%clk 0:00:37]}  g4+ {[%clk 0:01:42]} 25. Kxg4 {[%clk 0:00:27]}  Rxe4 {[%clk 0:01:43]} 26. Na4 {[%clk 0:00:25]}  a5 {[%clk 0:01:32]} 27. Nc5 {[%clk 0:00:25]}  Re2 {[%clk 0:01:27]} 28. Rb1 {[%clk 0:00:19]}  h5+ {[%clk 0:01:17]} 29. Kf3 {[%clk 0:00:18]}  Rde8 {[%clk 0:01:17]} 30. Rb2 {[%clk 0:00:14]}  R2e7 {[%clk 0:01:06]} 31. Rd1 {[%clk 0:00:14]}  b6 {[%clk 0:01:05]} 32. Nd3 {[%clk 0:00:12]}  h4 {[%clk 0:01:02]} 33. Ne5 {[%clk 0:00:12]}  hxg3 {[%clk 0:01:00]} 34. hxg3 {[%clk 0:00:12]}  axb4 {[%clk 0:01:00]} 35. cxb4 {[%clk 0:00:12]}  Rf8 {[%clk 0:01:00]} 36. Nxc6 {[%clk 0:00:11]}  Kxc6 {[%clk 0:01:01]} 37. Rc2+ {[%clk 0:00:12]}  Kb5 {[%clk 0:01:01]} 38. a3 {[%clk 0:00:12]}  Rg8 {[%clk 0:00:58]} 39. Rd3 {[%clk 0:00:11]}  Rh8 {[%clk 0:00:56]} 40. Rd5+ {[%clk 0:00:08]}  Ka4 {[%clk 0:00:56]} 41. b5 {[%clk 0:00:08]}  Rh1 {[%clk 0:00:56]} 42. Rd4+ {[%clk 0:00:08]}  Kxb5 {[%clk 0:00:56]} 43. Rb4+ {[%clk 0:00:07]}  Ka6 {[%clk 0:00:56]} 44. Be3 {[%clk 0:00:07]}  Re1 {[%clk 0:00:49]} 45. Bf2 {[%clk 0:00:06]}  R1e6 {[%clk 0:00:49]} 46. Rcb2 {[%clk 0:00:06]}  Rb7 {[%clk 0:00:49]} 47. Ra4# {[%clk 0:00:06]} 1-0


[Site "https://www.chess.com"]

[Event "Titled Tuesday Blitz June 13 Late 2023"]
[White "Martins, Bruno Andre Leite"]
[Black "Shapiro, Viktor"]
[WhiteFideId "1942255"]
[BlackFideId "4175700"]
[WhiteElo "2241"]
[BlackElo "2212"]
[Result "1-0"]
[Round "10"]
[TimeControl "180+2"]
[Date "2023.06.13"]
[WhiteClock "0:00:11"]
[BlackClock "0:00:15"]
[Board "62"]

1. e4 {[%clk 0:03:00]}  c5 {[%clk 0:02:56]} 2. Nf3 {[%clk 0:03:01]}  d6 {[%clk 0:02:55]} 3. d4 {[%clk 0:03:01]}  cxd4 {[%clk 0:02:56]} 4. Nxd4 {[%clk 0:03:02]}  Nf6 {[%clk 0:02:56]} 5. Nc3 {[%clk 0:03:02]}  a6 {[%clk 0:02:57]} 6. Bd3 {[%clk 0:03:02]}  e5 {[%clk 0:02:57]} 7. Nf5 {[%clk 0:03:03]}  Bxf5 {[%clk 0:02:54]} 8. exf5 {[%clk 0:03:04]}  d5 {[%clk 0:02:54]} 9. Bg5 {[%clk 0:03:04]}  e4 {[%clk 0:02:51]} 10. Be2 {[%clk 0:03:03]}  Bb4 {[%clk 0:02:49]} 11. O-O {[%clk 0:03:04]}  Bxc3 {[%clk 0:02:49]} 12. bxc3 {[%clk 0:03:05]}  Nbd7 {[%clk 0:02:44]} 13. c4 {[%clk 0:03:05]}  dxc4 {[%clk 0:02:42]} 14. Bxc4 {[%clk 0:03:06]}  O-O {[%clk 0:02:41]} 15. Rb1 {[%clk 0:02:08]}  Qc7 {[%clk 0:02:29]} 16. Bd5 {[%clk 0:02:04]}  Rab8 {[%clk 0:02:17]} 17. c4 {[%clk 0:02:03]}  b6 {[%clk 0:02:06]} 18. Qd4 {[%clk 0:02:02]}  Rfe8 {[%clk 0:02:04]} 19. Rfe1 {[%clk 0:02:01]}  Qc5 {[%clk 0:01:57]} 20. Qxc5 {[%clk 0:01:57]}  bxc5 {[%clk 0:01:53]} 21. Bf4 {[%clk 0:01:25]}  Rxb1 {[%clk 0:01:52]} 22. Rxb1 {[%clk 0:01:26]}  Nxd5 {[%clk 0:01:35]} 23. cxd5 {[%clk 0:01:27]}  Nf6 {[%clk 0:01:35]} 24. d6 {[%clk 0:01:25]}  Rd8 {[%clk 0:01:35]} 25. Bg3 {[%clk 0:01:12]}  Nd5 {[%clk 0:01:20]} 26. Rc1 {[%clk 0:01:04]}  f6 {[%clk 0:00:47]} 27. Rxc5 {[%clk 0:01:00]}  Nb4 {[%clk 0:00:48]} 28. a3 {[%clk 0:00:52]}  Nd3 {[%clk 0:00:48]} 29. Rc6 {[%clk 0:00:47]}  a5 {[%clk 0:00:48]} 30. Rc4 {[%clk 0:00:45]}  Ne5 {[%clk 0:00:39]} 31. Rd4 {[%clk 0:00:42]}  Kf7 {[%clk 0:00:36]} 32. h3 {[%clk 0:00:42]}  g6 {[%clk 0:00:35]} 33. fxg6+ {[%clk 0:00:39]}  hxg6 {[%clk 0:00:35]} 34. Rxe4 {[%clk 0:00:24]}  Rxd6 {[%clk 0:00:35]} 35. Bxe5 {[%clk 0:00:24]}  fxe5 {[%clk 0:00:25]} 36. Rxe5 {[%clk 0:00:25]}  Ra6 {[%clk 0:00:20]} 37. f4 {[%clk 0:00:21]}  Kf6 {[%clk 0:00:20]} 38. Kf2 {[%clk 0:00:21]}  a4 {[%clk 0:00:20]} 39. Re4 {[%clk 0:00:20]}  Kf5 {[%clk 0:00:20]} 40. Kf3 {[%clk 0:00:20]}  Ra7 {[%clk 0:00:19]} 41. g4+ {[%clk 0:00:20]}  Kf6 {[%clk 0:00:20]} 42. Rb4 {[%clk 0:00:19]}  Kf7 {[%clk 0:00:19]} 43. Kg3 {[%clk 0:00:19]}  Kf6 {[%clk 0:00:19]} 44. Kf3 {[%clk 0:00:19]}  Ke6 {[%clk 0:00:20]} 45. g5 {[%clk 0:00:18]}  Kd5 {[%clk 0:00:19]} 46. Kg4 {[%clk 0:00:17]}  Kc5 {[%clk 0:00:20]} 47. h4 {[%clk 0:00:17]}  Ra5 {[%clk 0:00:18]} 48. h5 {[%clk 0:00:16]}  gxh5+ {[%clk 0:00:18]} 49. Kxh5 {[%clk 0:00:17]}  Kd5 {[%clk 0:00:18]} 50. f5 {[%clk 0:00:17]}  Ke5 {[%clk 0:00:19]} 51. f6 {[%clk 0:00:17]}  Ke6 {[%clk 0:00:19]} 52. Kg6 {[%clk 0:00:13]}  Ra8 {[%clk 0:00:17]} 53. Rb6+ {[%clk 0:00:11]}  Kd5 {[%clk 0:00:18]} 54. f7 {[%clk 0:00:11]}  Kc5 {[%clk 0:00:17]} 55. Rb4 {[%clk 0:00:11]}  Ra6+ {[%clk 0:00:17]} 56. Kg7 {[%clk 0:00:11]}  Ra7 {[%clk 0:00:15]} 57. g6 {[%clk 0:00:11]} 1-0


[Site "https://www.chess.com"]

[Event "Titled Tuesday Blitz June 13 Late 2023"]
[White "Musovic, Armin"]
[Black "Kavutskiy, Konstantin"]
[WhiteFideId "939935"]
[BlackFideId "2026384"]
[WhiteElo "2322"]
[BlackElo "2323"]
[Result "1-0"]
[Round "10"]
[TimeControl "180+2"]
[Date "2023.06.13"]
[WhiteClock "0:00:29"]
[BlackClock "0:00:07"]
[Board "63"]

1. a3 {[%clk 0:03:00]}  g6 {[%clk 0:02:58]} 2. Nc3 {[%clk 0:03:00]}  Bg7 {[%clk 0:02:59]} 3. e4 {[%clk 0:03:01]}  c5 {[%clk 0:02:56]} 4. Bc4 {[%clk 0:03:01]}  e6 {[%clk 0:02:54]} 5. d3 {[%clk 0:03:01]}  Ne7 {[%clk 0:02:54]} 6. Bg5 {[%clk 0:03:01]}  h6 {[%clk 0:02:53]} 7. Bh4 {[%clk 0:03:02]}  Nbc6 {[%clk 0:02:50]} 8. Nge2 {[%clk 0:03:01]}  g5 {[%clk 0:02:47]} 9. Bg3 {[%clk 0:03:01]}  d5 {[%clk 0:02:47]} 10. Ba2 {[%clk 0:03:02]}  O-O {[%clk 0:02:46]} 11. O-O {[%clk 0:03:01]}  b6 {[%clk 0:02:33]} 12. f4 {[%clk 0:03:02]}  Nd4 {[%clk 0:02:12]} 13. fxg5 {[%clk 0:02:54]}  hxg5 {[%clk 0:02:10]} 14. Qd2 {[%clk 0:02:48]}  Nxe2+ {[%clk 0:02:07]} 15. Qxe2 {[%clk 0:02:49]}  d4 {[%clk 0:01:59]} 16. Nb1 {[%clk 0:02:38]}  Ng6 {[%clk 0:01:56]} 17. Qh5 {[%clk 0:02:28]}  Ne5 {[%clk 0:01:26]} 18. Nd2 {[%clk 0:02:19]}  Ba6 {[%clk 0:01:19]} 19. Nf3 {[%clk 0:02:08]}  Nxf3+ {[%clk 0:01:18]} 20. Rxf3 {[%clk 0:02:09]}  c4 {[%clk 0:01:13]} 21. Raf1 {[%clk 0:02:05]}  Qe7 {[%clk 0:01:08]} 22. e5 {[%clk 0:02:00]}  Bb7 {[%clk 0:01:04]} 23. Rf6 {[%clk 0:01:59]}  Rac8 {[%clk 0:00:50]} 24. Qxg5 {[%clk 0:01:43]}  cxd3 {[%clk 0:00:41]} 25. Bf4 {[%clk 0:01:17]}  Rxc2 {[%clk 0:00:38]} 26. Rf2 {[%clk 0:01:11]}  Rfc8 {[%clk 0:00:31]} 27. h4 {[%clk 0:01:11]}  Rxf2 {[%clk 0:00:20]} 28. Kxf2 {[%clk 0:01:11]}  Rc2+ {[%clk 0:00:20]} 29. Ke1 {[%clk 0:01:07]}  d2+ {[%clk 0:00:18]} 30. Bxd2 {[%clk 0:00:53]}  d3 {[%clk 0:00:18]} 31. h5 {[%clk 0:00:48]}  Qc5 {[%clk 0:00:18]} 32. h6 {[%clk 0:00:45]}  Qg1+ {[%clk 0:00:06]} 33. Rf1 {[%clk 0:00:45]}  Qxg2 {[%clk 0:00:05]} 34. Qxg7+ {[%clk 0:00:46]}  Qxg7 {[%clk 0:00:06]} 35. hxg7 {[%clk 0:00:47]}  Kxg7 {[%clk 0:00:07]} 36. Rg1+ {[%clk 0:00:41]}  Kf8 {[%clk 0:00:07]} 37. Bb3 {[%clk 0:00:31]}  Rxb2 {[%clk 0:00:07]} 38. Bb4+ {[%clk 0:00:31]}  Ke8 {[%clk 0:00:06]} 39. Ba4+ {[%clk 0:00:32]}  b5 {[%clk 0:00:06]} 40. Bxb5+ {[%clk 0:00:32]}  Kd8 {[%clk 0:00:07]} 41. Rg8+ {[%clk 0:00:29]}  Kc7 {[%clk 0:00:07]} 42. Ba5# {[%clk 0:00:29]} 1-0


[Site "https://www.chess.com"]

[Event "Titled Tuesday Blitz June 13 Late 2023"]
[White "Piesik, Piotr"]
[Black "Zaitsev, Alexander"]
[WhiteFideId "1136194"]
[BlackFideId "4164490"]
[WhiteElo "2303"]
[BlackElo "2373"]
[Result "1-0"]
[Round "10"]
[TimeControl "180+2"]
[Date "2023.06.13"]
[WhiteClock "0:02:31"]
[BlackClock "0:00:00"]
[Board "67"]

1. Nf3 {[%clk 0:03:00]}  Nf6 {[%clk 0:03:00]} 2. g3 {[%clk 0:03:01]}  d5 {[%clk 0:03:00]} 3. Bg2 {[%clk 0:03:01]}  c6 {[%clk 0:03:00]} 4. O-O {[%clk 0:03:02]}  Bg4 {[%clk 0:03:01]} 5. d3 {[%clk 0:03:02]}  Nbd7 {[%clk 0:03:01]} 6. Nbd2 {[%clk 0:03:03]}  e5 {[%clk 0:03:02]} 7. e4 {[%clk 0:03:04]}  Bd6 {[%clk 0:03:02]} 8. h3 {[%clk 0:03:04]}  Bh5 {[%clk 0:03:03]} 9. Qe1 {[%clk 0:03:04]}  O-O {[%clk 0:03:03]} 10. Nh4 {[%clk 0:03:04]}  Re8 {[%clk 0:03:00]} 11. Nf5 {[%clk 0:03:04]}  Bf8 {[%clk 0:03:01]} 12. Nb3 {[%clk 0:03:03]}  a5 {[%clk 0:02:56]} 13. a4 {[%clk 0:03:02]}  Qc7 {[%clk 0:02:50]} 14. g4 {[%clk 0:03:02]}  Bg6 {[%clk 0:02:49]} 15. Ng3 {[%clk 0:03:03]}  dxe4 {[%clk 0:02:41]} 16. dxe4 {[%clk 0:03:03]}  Nc5 {[%clk 0:02:36]} 17. Nxc5 {[%clk 0:03:02]}  Bxc5 {[%clk 0:02:37]} 18. Qe2 {[%clk 0:03:03]}  h6 {[%clk 0:02:12]} 19. h4 {[%clk 0:02:59]}  Nd7 {[%clk 0:02:04]} 20. h5 {[%clk 0:02:59]}  Bh7 {[%clk 0:02:04]} 21. g5 {[%clk 0:02:57]}  hxg5 {[%clk 0:02:01]} 22. Bxg5 {[%clk 0:02:58]}  Nf8 {[%clk 0:02:01]} 23. Bh3 {[%clk 0:02:57]}  Ne6 {[%clk 0:01:56]} 24. Bxe6 {[%clk 0:02:56]}  fxe6 {[%clk 0:01:48]} 25. Qg4 {[%clk 0:02:47]}  Qf7 {[%clk 0:01:45]} 26. Kg2 {[%clk 0:02:45]}  Rf8 {[%clk 0:01:45]} 27. f3 {[%clk 0:02:45]}  Kh8 {[%clk 0:01:40]} 28. Rad1 {[%clk 0:02:44]}  Bb6 {[%clk 0:01:30]} 29. Rd6 {[%clk 0:02:42]}  Rae8 {[%clk 0:01:11]} 30. Rfd1 {[%clk 0:02:41]}  Bd8 {[%clk 0:00:00]} 31. Bxd8 {[%clk 0:02:31]} 1-0


[Site "https://www.chess.com"]

[Event "Titled Tuesday Blitz June 13 Late 2023"]
[White "Novikov, Evgenij"]
[Black "Przybylski, Wojciech"]
[WhiteFideId "4125380"]
[BlackFideId "1117599"]
[WhiteElo "2242"]
[BlackElo "2228"]
[Result "0-1"]
[Round "10"]
[TimeControl "180+2"]
[Date "2023.06.13"]
[WhiteClock "0:00:02"]
[BlackClock "0:00:08"]
[Board "70"]

1. e4 {[%clk 0:03:00]}  e5 {[%clk 0:02:53]} 2. d4 {[%clk 0:03:00]}  exd4 {[%clk 0:02:52]} 3. c3 {[%clk 0:03:00]}  d3 {[%clk 0:02:51]} 4. Bxd3 {[%clk 0:03:00]}  Nc6 {[%clk 0:02:50]} 5. c4 {[%clk 0:03:00]}  Nf6 {[%clk 0:02:42]} 6. Ne2 {[%clk 0:02:58]}  Bc5 {[%clk 0:02:40]} 7. O-O {[%clk 0:02:53]}  h6 {[%clk 0:02:35]} 8. Nbc3 {[%clk 0:02:53]}  a6 {[%clk 0:02:31]} 9. Nd5 {[%clk 0:02:52]}  d6 {[%clk 0:02:30]} 10. Be3 {[%clk 0:02:47]}  Bxe3 {[%clk 0:02:21]} 11. Nxe3 {[%clk 0:02:47]}  O-O {[%clk 0:02:11]} 12. Nc3 {[%clk 0:02:41]}  Re8 {[%clk 0:02:01]} 13. Re1 {[%clk 0:02:39]}  Ne5 {[%clk 0:01:57]} 14. Bf1 {[%clk 0:02:39]}  Ng6 {[%clk 0:01:56]} 15. Ned5 {[%clk 0:02:31]}  c6 {[%clk 0:01:54]} 16. Nxf6+ {[%clk 0:02:24]}  Qxf6 {[%clk 0:01:54]} 17. Qc2 {[%clk 0:02:19]}  Be6 {[%clk 0:01:46]} 18. Rad1 {[%clk 0:02:17]}  Rad8 {[%clk 0:01:45]} 19. b3 {[%clk 0:02:16]}  Bc8 {[%clk 0:01:39]} 20. Ne2 {[%clk 0:02:06]}  Bg4 {[%clk 0:01:04]} 21. f3 {[%clk 0:02:05]}  Bc8 {[%clk 0:01:02]} 22. Qc3 {[%clk 0:02:05]}  Qg5 {[%clk 0:01:00]} 23. Qd2 {[%clk 0:02:03]}  Qe5 {[%clk 0:00:58]} 24. Qd4 {[%clk 0:02:03]}  Qg5 {[%clk 0:00:57]} 25. Qd2 {[%clk 0:02:02]}  Qf6 {[%clk 0:00:55]} 26. Ng3 {[%clk 0:01:58]}  Nf4 {[%clk 0:00:52]} 27. Kh1 {[%clk 0:01:56]}  h5 {[%clk 0:00:50]} 28. Qd4 {[%clk 0:01:51]}  Qg5 {[%clk 0:00:48]} 29. Qf2 {[%clk 0:01:51]}  h4 {[%clk 0:00:47]} 30. Ne2 {[%clk 0:01:52]}  Nh5 {[%clk 0:00:46]} 31. Nd4 {[%clk 0:01:46]}  c5 {[%clk 0:00:42]} 32. Nc2 {[%clk 0:01:45]}  Re6 {[%clk 0:00:42]} 33. Ne3 {[%clk 0:01:45]}  Ng3+ {[%clk 0:00:41]} 34. Kg1 {[%clk 0:01:40]}  Rh6 {[%clk 0:00:41]} 35. Rd5 {[%clk 0:01:36]}  Qg6 {[%clk 0:00:38]} 36. Qd2 {[%clk 0:01:26]}  Nh5 {[%clk 0:00:36]} 37. Nf5 {[%clk 0:01:23]}  Bxf5 {[%clk 0:00:33]} 38. Rxf5 {[%clk 0:01:23]}  Nf6 {[%clk 0:00:28]} 39. Rg5 {[%clk 0:01:23]}  Qh7 {[%clk 0:00:27]} 40. e5 {[%clk 0:01:23]}  Ne8 {[%clk 0:00:22]} 41. Bd3 {[%clk 0:01:20]}  g6 {[%clk 0:00:13]} 42. exd6 {[%clk 0:01:21]}  Nxd6 {[%clk 0:00:13]} 43. Rd5 {[%clk 0:01:21]}  Qg7 {[%clk 0:00:12]} 44. Qf4 {[%clk 0:01:19]}  g5 {[%clk 0:00:12]} 45. Qg4 {[%clk 0:01:06]}  f6 {[%clk 0:00:08]} 46. Qe6+ {[%clk 0:00:54]}  Qf7 {[%clk 0:00:07]} 47. Rxd6 {[%clk 0:00:53]}  Qxe6 {[%clk 0:00:05]} 48. Rxd8+ {[%clk 0:00:53]}  Kf7 {[%clk 0:00:05]} 49. Rxe6 {[%clk 0:00:53]}  Kxe6 {[%clk 0:00:05]} 50. Be4 {[%clk 0:00:53]}  b6 {[%clk 0:00:05]} 51. Bd5+ {[%clk 0:00:52]}  Ke5 {[%clk 0:00:05]} 52. Re8+ {[%clk 0:00:51]}  Kd4 {[%clk 0:00:05]} 53. Re6 {[%clk 0:00:51]}  b5 {[%clk 0:00:05]} 54. Re4+ {[%clk 0:00:50]}  Kd3 {[%clk 0:00:04]} 55. Kf2 {[%clk 0:00:50]}  b4 {[%clk 0:00:03]} 56. Re6 {[%clk 0:00:49]}  Kd4 {[%clk 0:00:03]} 57. Rxa6 {[%clk 0:00:48]}  h3 {[%clk 0:00:03]} 58. g4 {[%clk 0:00:47]}  Ke5 {[%clk 0:00:03]} 59. Re6+ {[%clk 0:00:46]}  Kd4 {[%clk 0:00:03]} 60. Kg3 {[%clk 0:00:47]}  Kd3 {[%clk 0:00:03]} 61. Be4+ {[%clk 0:00:46]}  Kd4 {[%clk 0:00:03]} 62. Rd6+ {[%clk 0:00:46]}  Kc3 {[%clk 0:00:03]} 63. Rd5 {[%clk 0:00:47]}  Rh8 {[%clk 0:00:02]} 64. Rxc5 {[%clk 0:00:47]}  Rf8 {[%clk 0:00:02]} 65. Rf5 {[%clk 0:00:46]}  Kb2 {[%clk 0:00:02]} 66. Kxh3 {[%clk 0:00:47]}  Kxa2 {[%clk 0:00:02]} 67. Bd5 {[%clk 0:00:41]}  Kxb3 {[%clk 0:00:02]} 68. c5+ {[%clk 0:00:42]}  Kc3 {[%clk 0:00:03]} 69. c6 {[%clk 0:00:42]}  b3 {[%clk 0:00:03]} 70. c7 {[%clk 0:00:42]}  b2 {[%clk 0:00:02]} 71. Rxf6 {[%clk 0:00:38]}  Rh8+ {[%clk 0:00:02]} 72. Kg2 {[%clk 0:00:32]}  b1=Q {[%clk 0:00:03]} 73. Rc6+ {[%clk 0:00:29]}  Kd4 {[%clk 0:00:03]} 74. c8=Q {[%clk 0:00:22]}  Rxc8 {[%clk 0:00:03]} 75. Rxc8 {[%clk 0:00:22]}  Kxd5 {[%clk 0:00:03]} 76. Rf8 {[%clk 0:00:18]}  Qc1 {[%clk 0:00:03]} 77. Rf5+ {[%clk 0:00:17]}  Kd4 {[%clk 0:00:03]} 78. h4 {[%clk 0:00:15]}  gxh4 {[%clk 0:00:03]} 79. Rh5 {[%clk 0:00:05]}  Qe1 {[%clk 0:00:03]} 80. Rh8 {[%clk 0:00:02]}  Qg3+ {[%clk 0:00:03]} 81. Kf1 {[%clk 0:00:02]}  Qxf3+ {[%clk 0:00:04]} 82. Kg1 {[%clk 0:00:02]}  Qg3+ {[%clk 0:00:04]} 83. Kh1 {[%clk 0:00:03]}  Qh3+ {[%clk 0:00:05]} 84. Kg1 {[%clk 0:00:03]}  Qxg4+ {[%clk 0:00:06]} 85. Kh1 {[%clk 0:00:03]}  Qf3+ {[%clk 0:00:06]} 86. Kg1 {[%clk 0:00:04]}  Qg3+ {[%clk 0:00:07]} 87. Kh1 {[%clk 0:00:04]}  h3 {[%clk 0:00:07]} 88. Rd8+ {[%clk 0:00:04]}  Ke3 {[%clk 0:00:07]} 89. Re8+ {[%clk 0:00:04]}  Kd3 {[%clk 0:00:07]} 90. Rd8+ {[%clk 0:00:04]}  Kc4 {[%clk 0:00:08]} 91. Rc8+ {[%clk 0:00:05]}  Kb3 {[%clk 0:00:08]} 92. Rb8+ {[%clk 0:00:02]}  Qxb8 {[%clk 0:00:08]} 0-1


[Site "https://www.chess.com"]

[Event "Titled Tuesday Blitz June 13 Late 2023"]
[White "Deng, Henry"]
[Black "Avalos Parra, Joao"]
[WhiteFideId "30965454"]
[BlackFideId "3402541"]
[WhiteElo "2543"]
[BlackElo "2173"]
[Result "1-0"]
[Round "10"]
[TimeControl "180+2"]
[Date "2023.06.13"]
[WhiteClock "0:01:17"]
[BlackClock "0:00:39"]
[Board "71"]

1. e4 {[%clk 0:02:36]}  e5 {[%clk 0:02:59]} 2. Nf3 {[%clk 0:02:35]}  Nc6 {[%clk 0:03:00]} 3. d4 {[%clk 0:02:35]}  exd4 {[%clk 0:03:00]} 4. Bc4 {[%clk 0:02:36]}  Nf6 {[%clk 0:02:58]} 5. e5 {[%clk 0:02:36]}  Ne4 {[%clk 0:02:55]} 6. Qe2 {[%clk 0:02:36]}  Nc5 {[%clk 0:02:30]} 7. O-O {[%clk 0:02:30]}  Be7 {[%clk 0:02:30]} 8. Rd1 {[%clk 0:02:21]}  Ne6 {[%clk 0:02:20]} 9. c3 {[%clk 0:02:17]}  dxc3 {[%clk 0:02:15]} 10. Nxc3 {[%clk 0:02:18]}  O-O {[%clk 0:02:15]} 11. b3 {[%clk 0:02:11]}  Qe8 {[%clk 0:02:14]} 12. Bb2 {[%clk 0:02:11]}  d6 {[%clk 0:02:15]} 13. exd6 {[%clk 0:02:10]}  Bxd6 {[%clk 0:02:14]} 14. Nb5 {[%clk 0:02:11]}  a6 {[%clk 0:01:57]} 15. Nxd6 {[%clk 0:02:08]}  cxd6 {[%clk 0:01:58]} 16. Rxd6 {[%clk 0:02:08]}  Nf4 {[%clk 0:01:56]} 17. Qf1 {[%clk 0:02:05]}  Bg4 {[%clk 0:01:55]} 18. Re1 {[%clk 0:02:03]}  Qb8 {[%clk 0:01:53]} 19. Rxc6 {[%clk 0:01:59]}  Bxf3 {[%clk 0:01:40]} 20. gxf3 {[%clk 0:01:57]}  bxc6 {[%clk 0:01:35]} 21. Be5 {[%clk 0:01:57]}  Qd8 {[%clk 0:01:27]} 22. Bxf4 {[%clk 0:01:54]}  Re8 {[%clk 0:01:27]} 23. Rd1 {[%clk 0:01:48]}  Qf6 {[%clk 0:01:24]} 24. Bg3 {[%clk 0:01:47]}  Qxf3 {[%clk 0:01:23]} 25. Rd7 {[%clk 0:01:43]}  Rf8 {[%clk 0:01:20]} 26. Re7 {[%clk 0:01:42]}  h5 {[%clk 0:01:17]} 27. Qh3 {[%clk 0:01:38]}  Rad8 {[%clk 0:01:15]} 28. Be2 {[%clk 0:01:38]}  Qf6 {[%clk 0:01:10]} 29. Re3 {[%clk 0:01:33]}  Rd2 {[%clk 0:01:05]} 30. Qxh5 {[%clk 0:01:28]}  Rfd8 {[%clk 0:00:54]} 31. Kg2 {[%clk 0:01:26]}  R2d5 {[%clk 0:00:52]} 32. Qg4 {[%clk 0:01:21]}  Rg5 {[%clk 0:00:48]} 33. Qh4 {[%clk 0:01:20]}  Qf5 {[%clk 0:00:42]} 34. Bf3 {[%clk 0:01:18]}  Rd2 {[%clk 0:00:39]} 35. Re8# {[%clk 0:01:17]} 1-0


[Site "https://www.chess.com"]

[Event "Titled Tuesday Blitz June 13 Late 2023"]
[White "Kim, Sergey"]
[Black "Kornyukov, Alexey"]
[WhiteFideId "13700570"]
[BlackFideId "4150457"]
[WhiteElo "2536"]
[BlackElo "2352"]
[Result "0-1"]
[Round "10"]
[TimeControl "180+2"]
[Date "2023.06.13"]
[WhiteClock "0:01:00"]
[BlackClock "0:00:06"]
[Board "72"]

1. d4 {[%clk 0:03:00]}  d5 {[%clk 0:02:58]} 2. c4 {[%clk 0:03:00]}  e6 {[%clk 0:02:58]} 3. Nc3 {[%clk 0:02:59]}  c6 {[%clk 0:02:58]} 4. e3 {[%clk 0:02:57]}  Nf6 {[%clk 0:02:58]} 5. Nf3 {[%clk 0:02:57]}  Nbd7 {[%clk 0:02:57]} 6. Bd3 {[%clk 0:02:57]}  dxc4 {[%clk 0:02:42]} 7. Bxc4 {[%clk 0:02:57]}  b5 {[%clk 0:02:42]} 8. Bb3 {[%clk 0:02:57]}  Bb7 {[%clk 0:02:33]} 9. O-O {[%clk 0:02:57]}  Be7 {[%clk 0:02:27]} 10. Qe2 {[%clk 0:02:57]}  b4 {[%clk 0:02:19]} 11. Na4 {[%clk 0:02:56]}  Qa5 {[%clk 0:02:16]} 12. Rd1 {[%clk 0:02:52]}  O-O {[%clk 0:02:12]} 13. e4 {[%clk 0:02:52]}  Qb5 {[%clk 0:02:06]} 14. Qe1 {[%clk 0:02:43]}  c5 {[%clk 0:01:56]} 15. Bg5 {[%clk 0:02:28]}  Bxe4 {[%clk 0:01:36]} 16. dxc5 {[%clk 0:02:24]}  Bxf3 {[%clk 0:01:31]} 17. gxf3 {[%clk 0:02:24]}  Nxc5 {[%clk 0:01:21]} 18. Qe5 {[%clk 0:02:14]}  a6 {[%clk 0:00:54]} 19. Nxc5 {[%clk 0:02:04]}  Qxc5 {[%clk 0:00:50]} 20. Bxf6 {[%clk 0:01:55]}  gxf6 {[%clk 0:00:50]} 21. Qe4 {[%clk 0:01:55]}  Kh8 {[%clk 0:00:45]} 22. Qd4 {[%clk 0:01:52]}  Rg8+ {[%clk 0:00:40]} 23. Kh1 {[%clk 0:01:49]}  Qh5 {[%clk 0:00:36]} 24. Qe4 {[%clk 0:01:43]}  Bc5 {[%clk 0:00:25]} 25. Rd2 {[%clk 0:01:32]}  Qg5 {[%clk 0:00:13]} 26. f4 {[%clk 0:01:30]}  Qg4 {[%clk 0:00:10]} 27. Rad1 {[%clk 0:01:16]}  Rac8 {[%clk 0:00:07]} 28. Bc4 {[%clk 0:01:08]}  f5 {[%clk 0:00:06]} 29. Qe2 {[%clk 0:01:00]}  Qg2# {[%clk 0:00:06]} 0-1


[Site "https://www.chess.com"]

[Event "Titled Tuesday Blitz June 13 Late 2023"]
[White "Womacka, Mathias"]
[Black "Romanchuk, Viktor"]
[WhiteFideId "4611390"]
[BlackFideId "14109271"]
[WhiteElo "2377"]
[BlackElo "2242"]
[Result "1-0"]
[Round "10"]
[TimeControl "180+2"]
[Date "2023.06.13"]
[WhiteClock "0:00:29"]
[BlackClock "0:00:00"]
[Board "74"]

1. e4 {[%clk 0:03:00]}  c6 {[%clk 0:02:57]} 2. d4 {[%clk 0:02:59]}  d5 {[%clk 0:02:57]} 3. Nd2 {[%clk 0:03:00]}  dxe4 {[%clk 0:02:56]} 4. Nxe4 {[%clk 0:03:01]}  Nd7 {[%clk 0:02:55]} 5. Nf3 {[%clk 0:02:57]}  Ngf6 {[%clk 0:02:54]} 6. Nxf6+ {[%clk 0:02:57]}  Nxf6 {[%clk 0:02:53]} 7. c3 {[%clk 0:02:57]}  Bg4 {[%clk 0:02:34]} 8. h3 {[%clk 0:02:56]}  Bxf3 {[%clk 0:02:29]} 9. Qxf3 {[%clk 0:02:57]}  Qd5 {[%clk 0:02:28]} 10. Be2 {[%clk 0:02:53]}  e6 {[%clk 0:02:27]} 11. O-O {[%clk 0:02:47]}  Bd6 {[%clk 0:02:26]} 12. Be3 {[%clk 0:02:41]}  Bc7 {[%clk 0:02:23]} 13. c4 {[%clk 0:02:40]}  Qd6 {[%clk 0:02:22]} 14. g3 {[%clk 0:02:40]}  O-O {[%clk 0:02:13]} 15. Rfd1 {[%clk 0:02:26]}  Rfe8 {[%clk 0:02:03]} 16. Bd3 {[%clk 0:02:20]}  Qb4 {[%clk 0:01:55]} 17. Rab1 {[%clk 0:02:09]}  Bb6 {[%clk 0:01:31]} 18. a3 {[%clk 0:02:01]}  Qe7 {[%clk 0:01:30]} 19. b4 {[%clk 0:01:59]}  Rad8 {[%clk 0:01:25]} 20. Bc2 {[%clk 0:01:49]}  a5 {[%clk 0:01:22]} 21. b5 {[%clk 0:01:36]}  c5 {[%clk 0:01:18]} 22. d5 {[%clk 0:01:08]}  exd5 {[%clk 0:01:10]} 23. cxd5 {[%clk 0:01:09]}  Ne4 {[%clk 0:00:46]} 24. Re1 {[%clk 0:00:42]}  Nc3 {[%clk 0:00:39]} 25. Bd2 {[%clk 0:00:40]}  Nxb1 {[%clk 0:00:27]} 26. Rxe7 {[%clk 0:00:39]}  Rxe7 {[%clk 0:00:09]} 27. Bxb1 {[%clk 0:00:38]}  c4 {[%clk 0:00:07]} 28. Bg5 {[%clk 0:00:31]}  f6 {[%clk 0:00:00]} 29. Be3 {[%clk 0:00:29]} 1-0


[Site "https://www.chess.com"]